fUSD/lending_fUSD_20240404
["ID","MTS","AMOUNT","RATE_DAILY","PERIOD"]
[321488094,1712239840584,-150.0,0.00038933,2]
[321488095,1712239840593,-1876.61601221,0.0003899,3]
[321488096,1712239840603,-1211.0,0.00039,4]
[321488097,1712239840612,-7263.28347,0.00039,2]
[321488098,1712239840622,-4786.0,0.00039077,2]
[321488099,1712239840631,-680.45,0.000393,7]
[321488100,1712239840641,-24325.78496019,0.00039446,2]
[321488101,1712239840653,-9984.44,0.00039484,2]
[321488102,1712239840662,-6161.4,0.00039484,2]
[321488103,1712239840676,-1305.710828,0.00039485,2]
[321488104,1712239840686,-275.5,0.000396,2]
[321488105,1712239840696,-52252.59779802,0.0003962,30]
[321488106,1712239840706,-2782.22220325,0.00039639,2]
[321488107,1712239840717,-927.89065783,0.00039639,2]
[321488108,1712239840727,-1405.13653441,0.00039639,2]
[321488109,1712239840737,-2951.42831885,0.00039639,3]
[321488110,1712239840747,-499.999999,0.00039639,2]
[321488111,1712239840757,-633153.2965327,0.00039639,20]
[321488112,1712239840767,-547.59726249,0.00039639,2]
[321488113,1712239840777,-150.0,0.00039639,2]
[321488114,1712239840786,-635.08382378,0.00039639,2]
[321488115,1712239840795,-609.13045787,0.00039639,2]
[321488116,1712239840805,-208.86253145,0.00039639,2]
[321488117,1712239840814,-16627.582021,0.00039639,7]
[321488118,1712239840824,-437.00427402,0.00039639,2]
[321488119,1712239840834,-563.43145373,0.00039639,2]
[321488120,1712239840843,-3358.66555455,0.00039639,2]
[321488121,1712239840853,-234.07386978,0.00039639,2]
[321488122,1712239840862,-524.15022582,0.00039639,2]
[321488123,1712239840873,-887.3352409,0.00039639,2]
[321488124,1712239840882,-468.27988177,0.00039639,2]
[321488125,1712239840892,-384.84017058,0.00039639,2]
[321488126,1712239840902,-240.34106936,0.00039639,2]
[321488127,1712239840912,-18495.37494677,0.00039639,7]
[321488128,1712239840921,-8723.64002819,0.00039639,14]
[321488129,1712239840931,-316.75387914,0.00039639,2]
[321488130,1712239840941,-532.61463632,0.00039639,2]
[321488131,1712239840951,-28062.0598695,0.00039639,7]
[321488132,1712239840961,-372.81174553,0.00039639,2]
[321488133,1712239840971,-526.74600646,0.00039639,5]
[321488134,1712239840981,-354.30280344,0.00039639,2]
[321488135,1712239840991,-592.27813173,0.00039639,2]
[321488136,1712239841001,-2006.59486654,0.00039639,7]
[321488137,1712239841011,-9252.17352754,0.00039639,2]
[321488138,1712239841021,-57257.27154382,0.00039639,7]
[321488139,1712239841030,-34913.5243912,0.00039639,2]
[321488140,1712239841040,-145866.1285226,0.00039639,2]
[321488141,1712239841049,-560.87710737,0.00039639,2]
[321488142,1712239841059,-18964.28991064,0.00039639,3]
[321488143,1712239841068,-3838.47354742,0.00039639,3]
[321488144,1712239841078,-337.43452704,0.00039639,2]
[321488145,1712239841088,-771.11898055,0.00039639,20]
[321488146,1712239841098,-407.0,0.00039639,2]
[321488147,1712239841107,-214.12746738,0.00039639,2]
[321488148,1712239841117,-1713.22894681,0.00039639,2]
[321488149,1712239841126,-150.0,0.00039639,2]
[321488150,1712239841135,-150.0,0.00039639,2]
[321488151,1712239841145,-200.0,0.00039639,2]
[321488152,1712239841154,-242.031541,0.00039639,30]
[321488153,1712239841164,-150.0,0.00039798,2]
[321488154,1712239841173,-338909.5218139,0.000399,2]
[321488155,1712239841183,-1000.0,0.0003997,2]
[321488156,1712239841193,-1006.2972741,0.0003997,2]
[321488157,1712239841203,-2098.24101647,0.00039997,2]
[321488158,1712239841212,-300.0,0.00039999,2]
[321488159,1712239841222,-259.25084898,0.00039999,2]
[321488160,1712239841232,-22103.7237332,0.0004,4]
[321488161,1712239841243,-192.76675003,0.0004,2]
[321488162,1712239841253,-466.03830899,0.0004,15]
[321488163,1712239841263,-7198.6183995,0.0004,4]
[321488164,1712239841343,-547.14230713,0.0004,4]
[321488165,1712239841352,-1570.65515847,0.0004,60]
[321488166,1712239841362,-482.82080249,0.0004,30]
[321488167,1712239841372,-1693.31614018,0.0004,10]
[321488168,1712239841381,-530.08933711,0.0004,30]
[321488169,1712239841390,-509.85214185,0.0004,30]
[321488170,1712239841400,-25925.69492793,0.0004,7]
[321488171,1712239841409,-171.13123874,0.0004,30]
[321488172,1712239841418,-932.29759929,0.0004,2]
[321488173,1712239841426,-26184.23080357,0.0004,2]
[321488174,1712239841435,-367.14545274,0.0004,30]
[321488175,1712239841444,-369.09860845,0.0004,2]
[321488176,1712239841453,-5890.47437009,0.0004,2]
[321488177,1712239841463,-5890.47437009,0.0004,2]
[321488178,1712239841472,-5890.47437009,0.0004,2]
[321488179,1712239841481,-5890.47437009,0.0004,2]
[321488180,1712239841491,-5890.47437009,0.0004,2]
[321488181,1712239841500,-5890.47437009,0.0004,2]
[321488182,1712239841509,-5890.47437009,0.0004,2]
[321488183,1712239841522,-5890.47437009,0.0004,2]
[321488184,1712239841531,-5890.47437009,0.0004,2]
[321488185,1712239841540,-5890.47437009,0.0004,2]
[321488186,1712239841550,-5890.47437009,0.0004,2]
[321488187,1712239841559,-5890.47437009,0.0004,2]
[321488188,1712239841573,-5890.47437009,0.0004,2]
[321488189,1712239841582,-5890.47437009,0.0004,2]
[321488190,1712239841593,-5890.47437009,0.0004,2]
[321488191,1712239841602,-5890.47437009,0.0004,2]
[321488192,1712239841611,-5890.47437009,0.0004,2]
[321488193,1712239841622,-5890.47437009,0.0004,2]
[321488194,1712239841633,-5890.47437009,0.0004,2]
[321488195,1712239841643,-5890.47437009,0.0004,2]
[321488196,1712239841657,-5890.47437009,0.0004,2]
[321488197,1712239841668,-5890.47437009,0.0004,2]
[321488198,1712239841677,-5890.47437009,0.0004,2]
[321488199,1712239841687,-5890.47437009,0.0004,2]
[321488200,1712239841697,-5890.47437009,0.0004,2]
[321488201,1712239841706,-5890.47437009,0.0004,2]
[321488202,1712239841715,-5890.47437009,0.0004,2]
[321488203,1712239841725,-5890.47437009,0.0004,2]
[321488204,1712239841766,-5890.47437009,0.0004,2]
[321488205,1712239841775,-5890.47437009,0.0004,2]
[321488206,1712239841785,-170.93559813,0.00040008,9]
[321488207,1712239841794,-1008.56,0.000401,2]
[321488208,1712239841804,-306.92,0.000401,2]
[321488209,1712239841813,-1051.69367994,0.00040192,30]
[321488210,1712239841823,-18672.60127555,0.0004021,2]
[321488211,1712239841833,-2496.35,0.00040281,2]
[321488212,1712239841843,-1813.09317259,0.00040373,14]
[321488213,1712239841853,-1051.69367994,0.00040384,30]
[321488214,1712239841862,-491.24,0.000405,7]
[321488215,1712239841872,-1051.69367994,0.00040548,30]
[321488216,1712239841882,-299.0,0.00040575,2]
[321488217,1712239841891,-150.0,0.00040575,2]
[321488218,1712239841900,-164.949,0.00040575,2]
[321488219,1712239841911,-603.0,0.00040575,2]
[321488220,1712239841920,-358.0,0.00040575,2]
[321488221,1712239841929,-299.0,0.00040575,2]
[321488222,1712239841938,-1631.0,0.00040575,2]
[321488223,1712239841948,-2408.0,0.00040575,2]
[321488224,1712239841958,-207.0,0.00040575,2]
[321488225,1712239841967,-214.0,0.00040575,2]
[321488226,1712239841976,-375.52,0.000406,7]
[321488227,1712239841986,-475.641677,0.000406,2]
[321488228,1712239841995,-150.0,0.00040663,2]
[321488229,1712239842005,-1051.69367994,0.00040712,30]
[321488230,1712239842014,-1481.46,0.00040767,15]
[321488231,1712239842023,-11008.82,0.00040822,2]
[321488232,1712239842032,-1051.69367994,0.00040877,30]
[321488233,1712239842043,-680.45,0.000409,7]
[321488234,1712239842052,-100222.11437542,0.00041,3]
[321488235,1712239842061,-150.94,0.00041,2]
[321488236,1712239842070,-150.94,0.00041,2]
[321488237,1712239842079,-150.94,0.00041,2]
[321488238,1712239842088,-150.94,0.00041,2]
[321488239,1712239842098,-150.94,0.00041,2]
[321488240,1712239842107,-150.94,0.00041,2]
[321488241,1712239842117,-150.94,0.00041,2]
[321488242,1712239842126,-150.94,0.00041,2]
[321488243,1712239842135,-150.94,0.00041,2]
[321488244,1712239842148,-150.94,0.00041,2]
[321488245,1712239842172,-150.94,0.00041,2]
[321488246,1712239842198,-150.94,0.00041,2]
[321488247,1712239842227,-150.94,0.00041,2]
[321488248,1712239842256,-150.94,0.00041,2]
[321488249,1712239842288,-1051.69367994,0.00041041,30]
[321488250,1712239842310,-1000.0,0.00041096,7]
[321488251,1712239842332,-1000.0,0.00041096,7]
[321488252,1712239842348,-1000.0,0.00041096,7]
[321488253,1712239842357,-1000.0,0.00041096,7]
[321488254,1712239842366,-1000.0,0.00041096,7]
[321488255,1712239842375,-1000.0,0.00041096,7]
[321488256,1712239842384,-1000.0,0.00041096,7]
[321488257,1712239842394,-1000.0,0.00041096,7]
[321488258,1712239842403,-1000.0,0.00041096,7]
[321488259,1712239842412,-1000.0,0.00041096,7]
[321488260,1712239842421,-1000.0,0.00041096,7]
[321488262,1712239842430,-1000.0,0.00041096,7]
[321488264,1712239842439,-1000.0,0.00041096,7]
[321488265,1712239842449,-1000.0,0.00041096,7]
[321488267,1712239842458,-1000.0,0.00041096,7]
[321488269,1712239842467,-1000.0,0.00041096,7]
[321488271,1712239842477,-1000.0,0.00041096,7]
[321488273,1712239842486,-1000.0,0.00041096,7]
[321488274,1712239842495,-1000.0,0.00041096,7]
[321488276,1712239842504,-1000.0,0.00041096,7]
[321488277,1712239842514,-1000.0,0.00041096,7]
[321488279,1712239842523,-1000.0,0.00041096,7]
[321488281,1712239842532,-1000.0,0.00041096,7]
[321488282,1712239842542,-1000.0,0.00041096,7]
[321488284,1712239842551,-1000.0,0.00041096,7]
[321488285,1712239842561,-1000.0,0.00041096,7]
[321488286,1712239842571,-1000.0,0.00041096,7]
[321488287,1712239842580,-1000.0,0.00041096,7]
[321488288,1712239842589,-1000.0,0.00041096,7]
[321488289,1712239842598,-1000.0,0.00041096,7]
[321488290,1712239842607,-1000.0,0.00041096,7]
[321488291,1712239842616,-1000.0,0.00041096,7]
[321488292,1712239842625,-1000.0,0.00041096,7]
[321488293,1712239842635,-1000.0,0.00041096,7]
[321488294,1712239842645,-1000.0,0.00041096,7]
[321488295,1712239842655,-1000.0,0.00041096,7]
[321488296,1712239842664,-1000.0,0.00041096,7]
[321488297,1712239842678,-1000.0,0.00041096,7]
[321488298,1712239842687,-1000.0,0.00041096,7]
[321488299,1712239842697,-1000.0,0.00041096,7]
[321488300,1712239842706,-1000.0,0.00041096,7]
[321488301,1712239842716,-1000.0,0.00041096,7]
[321488302,1712239842727,-1000.0,0.00041096,7]
[321488303,1712239842738,-1000.0,0.00041096,7]
[321488304,1712239842748,-1000.0,0.00041096,7]
[321488305,1712239842757,-1000.0,0.00041096,7]
[321488306,1712239842766,-1000.0,0.00041096,7]
[321488307,1712239842812,-1000.0,0.00041096,7]
[321488308,1712239842821,-1000.0,0.00041096,7]
[321488309,1712239842830,-1000.0,0.00041096,7]
[321488310,1712239842840,-1000.0,0.00041096,7]
[321488311,1712239842849,-1000.0,0.00041096,7]
[321488312,1712239842858,-1000.0,0.00041096,7]
[321488313,1712239842867,-1000.0,0.00041096,7]
[321488314,1712239842877,-1000.0,0.00041096,7]
[321488315,1712239842886,-1000.0,0.00041096,7]
[321488316,1712239842895,-1000.0,0.00041096,7]
[321488317,1712239842904,-1000.0,0.00041096,7]
[321488318,1712239842914,-1000.0,0.00041096,7]
[321488319,1712239842922,-1000.0,0.00041096,7]
[321488320,1712239842932,-1000.0,0.00041096,7]
[321488321,1712239842941,-1000.0,0.00041096,7]
[321488322,1712239842950,-1000.0,0.00041096,7]
[321488323,1712239842960,-1000.0,0.00041096,7]
[321488324,1712239842969,-1000.0,0.00041096,7]
[321488325,1712239842979,-1000.0,0.00041096,7]
[321488326,1712239842988,-157.0,0.00041096,2]
[321488327,1712239842997,-1000.0,0.00041096,7]
[321488328,1712239843007,-1000.0,0.00041096,7]
[321488329,1712239843017,-1000.0,0.00041096,7]
[321488331,1712239843026,-1000.0,0.00041096,7]
[321488332,1712239843035,-1000.0,0.00041096,7]
[321488333,1712239843045,-1000.0,0.00041096,7]
[321488334,1712239843054,-1000.0,0.00041096,7]
[321488335,1712239843063,-1000.0,0.00041096,7]
[321488336,1712239843072,-1000.0,0.00041096,7]
[321488337,1712239843081,-1000.0,0.00041096,7]
[321488338,1712239843090,-1000.0,0.00041096,7]
[321488339,1712239843099,-1000.0,0.00041096,7]
[321488340,1712239843108,-1000.0,0.00041096,7]
[321488341,1712239843117,-1000.0,0.00041096,7]
[321488342,1712239843127,-1000.0,0.00041096,7]
[321488343,1712239843136,-1000.0,0.00041096,7]
[321488344,1712239843145,-1000.0,0.00041096,7]
[321488345,1712239843154,-1000.0,0.00041096,7]
[321488346,1712239843164,-1000.0,0.00041096,7]
[321488347,1712239843173,-1000.0,0.00041096,7]
[321488348,1712239843182,-1000.0,0.00041096,7]
[321488349,1712239843191,-1000.0,0.00041096,7]
[321488350,1712239843201,-1000.0,0.00041096,7]
[321488351,1712239843210,-1000.0,0.00041096,7]
[321488352,1712239843221,-1000.0,0.00041096,7]
[321488353,1712239843246,-1000.0,0.00041096,7]
[321488354,1712239843256,-1000.0,0.00041096,7]
[321488355,1712239843266,-1000.0,0.00041096,7]
[321488356,1712239843275,-1000.0,0.00041096,7]
[321488357,1712239843284,-1000.0,0.00041096,7]
[321488358,1712239843293,-1000.0,0.00041096,7]
[321488359,1712239843302,-1000.0,0.00041096,7]
[321488360,1712239843310,-1000.0,0.00041096,7]
[321488361,1712239843320,-3000.0,0.000411,2]
[321488362,1712239843328,-13295.03666839,0.0004111,2]
[321488363,1712239843337,-754.93115595,0.0004111,2]
[321488364,1712239843346,-1051.69367994,0.00041205,30]
[321488365,1712239843355,-1051.69367994,0.00041397,30]
[321488366,1712239843364,-1008.56,0.00041455,2]
[321488367,1712239843372,-150.0,0.00041528,2]
[321488368,1712239843381,-1051.69367994,0.00041562,30]
[321488369,1712239843390,-152.0,0.0004163,3]
[321488370,1712239843400,-166.53,0.000417,4]
[321488371,1712239843409,-166.53,0.000417,4]
[321488372,1712239843419,-166.53,0.000417,4]
[321488373,1712239843428,-166.53,0.000417,4]
[321488374,1712239843437,-166.53,0.000417,4]
[321488375,1712239843446,-166.53,0.000417,4]
[321488376,1712239843456,-166.53,0.000417,4]
[321488377,1712239843465,-166.53,0.000417,4]
[321488378,1712239843474,-166.53,0.000417,4]
[321488379,1712239843484,-166.53,0.000417,4]
[321488380,1712239843493,-166.53,0.000417,4]
[321488381,1712239843502,-166.53,0.000417,4]
[321488382,1712239843512,-7511.16,0.000417,4]
[321488383,1712239843522,-7511.16,0.000417,4]
[321488384,1712239843531,-7511.16,0.000417,4]
[321488385,1712239843541,-7511.16,0.000417,4]
[321488386,1712239843554,-7511.16,0.000417,4]
[321488387,1712239843564,-7511.16,0.000417,4]
[321488388,1712239843574,-7511.16,0.000417,4]
[321488389,1712239843584,-7511.16,0.000417,4]
[321488390,1712239843593,-7511.16,0.000417,4]
[321488391,1712239843603,-7511.16,0.000417,4]
[321488392,1712239843613,-7511.16,0.000417,4]
[321488393,1712239843623,-7511.16,0.000417,4]
[321488394,1712239843633,-7511.16,0.000417,4]
[321488395,1712239843643,-7511.16,0.000417,4]
[321488396,1712239843657,-7511.16,0.000417,4]
[321488397,1712239843666,-7511.16,0.000417,4]
[321488398,1712239843676,-7511.16,0.000417,4]
[321488399,1712239843686,-7511.16,0.000417,4]
[321488400,1712239843696,-7511.16,0.000417,4]
[321488401,1712239843705,-7511.16,0.000417,4]
[321488402,1712239843715,-1051.69367994,0.00041726,30]
[321488403,1712239843727,-100000.0,0.0004173,2]
[321488404,1712239843746,-11047.46,0.0004173,2]
[321488405,1712239843755,-245000.0,0.0004173,2]
[321488406,1712239843764,-8523.83226739,0.0004183,7]
[321488407,1712239843773,-5000.0,0.0004183,10]
[321488408,1712239843786,-5000.0,0.0004183,5]
[321488409,1712239843795,-5000.0,0.0004183,6]
[321488410,1712239843804,-306.92,0.0004184,2]
[321488411,1712239843813,-1051.69367994,0.0004189,30]
[321488412,1712239843822,-300.0,0.000419,15]
[321488413,1712239843832,-318.00145479,0.00042,2]
[321488414,1712239843842,-8769.75307227,0.00042,2]
[321488415,1712239843851,-453.73686246,0.00042,120]
[321488416,1712239843861,-4749.81402107,0.00042,2]
[321488417,1712239843870,-150.0,0.00042,10]
[321488418,1712239843879,-491.24,0.00042,7]
[321488419,1712239843889,-392.369205,0.00042,17]
[321488420,1712239843903,-1303.68228842,0.0004201,2]
[321488421,1712239843912,-1051.69367994,0.00042055,30]
[321488422,1712239843922,-2361.0,0.00042077,2]
[321488423,1712239843931,-500.0,0.00042147,2]
[321488424,1712239843940,-1051.69367994,0.00042247,30]
[321488425,1712239843949,-375.52,0.000423,7]
[321488426,1712239843959,-150.0,0.00042394,2]
[321488427,1712239843968,-152.0,0.00042398,4]
[321488428,1712239843978,-680.45,0.000424,7]
[321488429,1712239843987,-1051.69367994,0.00042411,30]
[321488430,1712239843996,-150.0,0.00042454,120]
[321488431,1712239844006,-420.10127188,0.000425,4]
[321488432,1712239844015,-1000.0,0.000425,7]
[321488433,1712239844024,-2496.35,0.00042545,2]
[321488434,1712239844034,-1051.69367994,0.00042575,60]
[321488435,1712239844045,-1813.09317259,0.00042584,17]
[321488436,1712239844055,-1008.56,0.0004281,2]
[321488437,1712239844064,-103569.11859175,0.00042914,4]
[321488438,1712239844073,-151.0,0.00042979,2]
[321488439,1712239844082,-250.49088,0.00042979,2]
[321488440,1712239844091,-2098.24101647,0.00042997,2]
[321488441,1712239844100,-156.14,0.00043,2]
[321488442,1712239844110,-721.67168931,0.00043,4]
[321488443,1712239844119,-155.0,0.00043,120]
[321488444,1712239844129,-243598.10945336,0.00043,2]
[321488445,1712239844138,-906.74899754,0.0004302,2]
[321488446,1712239844148,-500.0,0.00043078,4]
[321488447,1712239844157,-500.0,0.00043078,4]
[321488448,1712239844167,-314.0,0.00043078,4]
[321488449,1712239844176,-152.0,0.00043165,5]
[321488450,1712239844186,-365.13,0.00043219,2]
[321488451,1712239844195,-10000.0,0.00043245,2]
[321488452,1712239844205,-150.0,0.00043259,2]
[321488453,1712239844214,-156.25,0.00043288,2]
[321488454,1712239844224,-1481.46,0.00043507,15]
[321488455,1712239844251,-68005.03385278,0.0004355,2]
[321488456,1712239844260,-611.12,0.00043575,2]
[321488457,1712239844269,-207.0,0.00043575,2]
[321488458,1712239844278,-214.0,0.00043575,2]
[321488459,1712239844288,-306.92,0.0004358,2]
[321488460,1712239844297,-396341.71893344,0.000436,2]
[321488461,1712239844306,-491.24,0.000436,7]
[321488462,1712239844315,-150.0,0.00043607,2]
[321488463,1712239844325,-800.0,0.00043636,20]
[321488464,1712239844335,-500.0,0.00043636,20]
[321488465,1712239844344,-302.0,0.00043701,4]
[321488466,1712239844353,-1398.444825,0.0004378,19]
[321488467,1712239844362,-170.93559813,0.00043785,11]
[321488468,1712239844371,-1320.60419,0.0004379,20]
[321488469,1712239844381,-5579.53546474,0.00043797,2]
[321488470,1712239844390,-375.52,0.000438,7]
[321488471,1712239844399,-1500.0,0.000438,2]
[321488472,1712239844408,-1000.0,0.000438,19]
[321488473,1712239844417,-13295.03666839,0.00043812,2]
[321488474,1712239844426,-754.93115595,0.00043812,2]
[321488475,1712239844436,-1000.0,0.0004382,19]
[321488476,1712239844445,-3604.0,0.00043829,10]
[321488477,1712239844454,-441.1,0.00043836,2]
[321488478,1712239844463,-1000.0,0.0004384,19]
[321488479,1712239844473,-1000.0,0.0004386,20]
[321488480,1712239844482,-1000.0,0.0004387,3]
[321488481,1712239844491,-200.0,0.0004387,7]
[321488482,1712239844501,-200.0,0.0004387,7]
[321488483,1712239844511,-8392.96406588,0.00043877,2]
[321488484,1712239844520,-4778.27736573,0.0004388,15]
[321488485,1712239844529,-1010021.19262425,0.0004388,2]
[321488486,1712239844538,-1000.0,0.0004388,20]
[321488487,1712239844549,-1000.0,0.000439,20]
[321488488,1712239844558,-1000.0,0.0004392,20]
[321488489,1712239844568,-152.0,0.00043933,6]
[321488490,1712239844577,-1000.0,0.0004394,20]
[321488491,1712239844586,-1175.393457,0.0004394,20]
[321488492,1712239844595,-1000.0,0.0004396,20]
[321488493,1712239844605,-1000.0,0.0004396,20]
[321488494,1712239844614,-1000.0,0.0004397,3]
[321488495,1712239844623,-1000.0,0.0004397,3]
[321488496,1712239844634,-1000.0,0.0004397,3]
[321488497,1712239844643,-1000.0,0.0004398,20]
[321488498,1712239844653,-1000.0,0.0004398,20]
[321488499,1712239844662,-264.28399377,0.00043985,4]
[321488500,1712239844675,-155.0,0.00043985,4]
[321488501,1712239844685,-2456.81243184,0.00043985,4]
[321488502,1712239844694,-1000.0,0.00043987,2]
[321488503,1712239844703,-1000.0,0.00043987,2]
[321488504,1712239844713,-1000.0,0.00043987,2]
[321488505,1712239844723,-1000.0,0.00043987,2]
[321488506,1712239844747,-1000.0,0.00043987,2]
[321488507,1712239844756,-1000.0,0.00043987,2]
[321488508,1712239844766,-1000.0,0.00043987,2]
[321488509,1712239844776,-1000.0,0.00043987,2]
[321488510,1712239844787,-1000.0,0.00043987,2]
[321488511,1712239844797,-1000.0,0.00043987,2]
[321488512,1712239844806,-1000.0,0.00043987,2]
[321488513,1712239844816,-1000.0,0.00043987,2]
[321488514,1712239844825,-1000.0,0.00043987,2]
[321488515,1712239844835,-1000.0,0.00043987,2]
[321488516,1712239844844,-1000.0,0.00043987,2]
[321488517,1712239844854,-1000.0,0.00043987,2]
[321488518,1712239844864,-1000.0,0.00043987,2]
[321488519,1712239844874,-1042.05888118,0.00043987,2]
[321488520,1712239844884,-3353.30355716,0.00043988,4]
[321488521,1712239844895,-256.04237772,0.00043988,30]
[321488522,1712239844904,-653.27182698,0.00043988,30]
[321488523,1712239844914,-214.6091896,0.00043988,30]
[321488524,1712239844923,-2000.0,0.00043988,7]
[321488525,1712239844933,-200.0,0.00043988,7]
[321488526,1712239844942,-32167.02178988,0.00043988,2]
[321488527,1712239844952,-1320.60418,0.00043988,21]
[321488528,1712239844962,-1320.60418,0.00043988,21]
[321488529,1712239844971,-1000.0,0.00043997,30]
[321488530,1712239844981,-7102.37009817,0.00044,60]
[321488531,1712239844990,-679.3110518,0.00044,45]
[321488532,1712239845000,-150.2,0.00044,20]
[321488533,1712239845009,-14370.60280252,0.00044,2]
[321488534,1712239845019,-680.45,0.00044,7]
[321488535,1712239845029,-200.0,0.00044,20]
[321488536,1712239845039,-1000.0,0.00044,20]
[321488537,1712239845048,-1000.0,0.00044,20]
[321488538,1712239845058,-152.40874845,0.00044009,30]
[321488539,1712239845067,-193.26894352,0.00044097,30]
[321488540,1712239845076,-1320.60418,0.000441,21]
[321488541,1712239845085,-150.0,0.00044124,2]
[321488542,1712239845095,-1008.56,0.00044165,2]
[321488543,1712239845105,-156.91958371,0.00044173,30]
[321488544,1712239845114,-163.98,0.00044208,2]
[321488545,1712239845123,-150.5109859,0.00044319,30]
[321488546,1712239845133,-151.0,0.00044374,6]
[321488547,1712239845142,-1000.0,0.000444,7]
[321488548,1712239845151,-710.0,0.000444,30]
[321488549,1712239845161,-669.0,0.000444,30]
[321488550,1712239845170,-1320.60419,0.0004441,23]
[321488551,1712239845180,-2000.0,0.00044428,7]
[321488552,1712239845189,-200.0,0.00044428,7]
[321488553,1712239845198,-218.74842781,0.00044433,30]
[321488554,1712239845208,-604.0,0.00044436,7]
[321488555,1712239845217,-10039.14869107,0.00044444,7]
[321488556,1712239845226,-156.25,0.00044444,2]
[321488557,1712239845252,-155.54109467,0.00044547,30]
[321488558,1712239845261,-150.04168176,0.00044584,30]
[321488559,1712239845270,-155.51901077,0.00044592,30]
[321488561,1712239845279,-193.26894352,0.00044649,30]
[321488562,1712239845287,-3000.0,0.000447,2]
[321488564,1712239845296,-152.0,0.000447,7]
[321488565,1712239845305,-1320.60418,0.0004472,24]
[321488566,1712239845314,-218.74842781,0.00044761,30]
[321488567,1712239845323,-218.74842781,0.00044776,30]
[321488568,1712239845332,-153.30454884,0.0004478,24]
[321488570,1712239845341,-1813.09317259,0.00044794,20]
[321488571,1712239845350,-2496.35,0.00044809,2]
[321488573,1712239845359,-176.19582858,0.0004482,30]
[321488575,1712239845368,-218.74842781,0.00044827,30]
[321488577,1712239845377,-2000.0,0.00044872,7]
[321488579,1712239845386,-871.34353157,0.0004489,10]
[321488581,1712239845395,-155.0884846,0.00044967,30]
[321488583,1712239845404,-5170.91605711,0.0004498,2]
[321488585,1712239845414,-153.82631398,0.00044985,30]
[321488587,1712239845423,-5000.0,0.00044986,4]
[321488589,1712239845432,-150.0,0.00044989,2]
[321488591,1712239845442,-2098.24101647,0.00044997,2]
[321488593,1712239845451,-328.47719203,0.00045,4]
[321488595,1712239845460,-510.350444,0.00045,120]
[321488596,1712239845469,-704.46813212,0.00045,30]
[321488598,1712239845478,-70876.35734698,0.00045,2]
[321488600,1712239845488,-1200.0,0.00045,46]
[321488602,1712239845497,-1215.52391243,0.00045,5]
[321488616,1712239845617,-150.999999,0.00045,120]
[321488618,1712239845637,-19412.37904521,0.00045,2]
[321488620,1712239845650,-157.88190132,0.00045,120]
[321488622,1712239845660,-152.26944911,0.00045034,30]
[321488624,1712239845671,-218.74842781,0.0004515,30]
[321488626,1712239845681,-150.0,0.00045167,60]
[321488628,1712239845694,-166.99392,0.00045183,4]
[321488630,1712239845704,-153.45332323,0.00045184,30]
[321488632,1712239845714,-491.24,0.000452,7]
[321488634,1712239845724,-193.26894352,0.00045266,30]
[321488636,1712239845735,-193.26894352,0.00045273,30]
[321488638,1712239845763,-375.52,0.000453,7]
[321488640,1712239845772,-153.74329264,0.00045311,30]
[321488642,1712239845782,-306.92,0.0004532,2]
[321488644,1712239845791,-153.82631398,0.00045325,30]
[321488646,1712239845800,-163.7658578,0.00045373,60]
[321488648,1712239845809,-166.53,0.000454,5]
[321488650,1712239845819,-166.53,0.000454,5]
[321488652,1712239845828,-166.53,0.000454,5]
[321488654,1712239845837,-166.53,0.000454,5]